Cogmind - Beta 11 @@@ ROGUE MODE // 2022.03.29 @ 17:33:30 Player: Qirby Result: Destroyed by S-10 Pest with Light Assault Rifle Performance ------------- Evolutions (1) 500 Regions Visited (2) 400 Robots Destroyed (39) 195 Value Destroyed (703) 703 Prototype IDs (3) 60 Alien Tech Used (0) 0 Bonus (0) 0 TOTAL SCORE: 1858 Bonus ------- None Cogmind --------- Core Integrity 0/400 Matter 300/300 Energy 100/100 System Corruption 0% Temperature Cool (0) Movement Rolling (100) Location -9/Materials Parts ------- > --- POWER (1) -------- (None) > --- PROPULSION (2) --- Compact Wheel Compact Wheel > --- UTILITY (4) ------ Medium Storage Unit Structural Scanner Signal Interpreter > --- WEAPON (2) ------- Small Laser > --- INVENTORY (10) --- Ion Engine Aluminum Leg Aluminum Leg Aluminum Leg Signal Interpreter Datajack Mining Laser Peak State ------------ > --- POWER ------------ Ion Engine > --- PROPULSION ------- Wheel Wheel > --- UTILITY ---------- Medium Storage Unit Structural Scanner Signal Interpreter Transport Network Coupler > --- WEAPON ----------- Beam Rifle Particle Gun > --- INVENTORY -------- Wheel Assault Rifle Datajack Mining Laser [Rating: 11] Favorites ----------- Power Ion Engine Engine Ion Engine Propulsion Wheel Leg Aluminum Leg Wheel Wheel Utility Improved Terrain Scanner Device Improved Terrain Scanner Storage Medium Storage Unit Processor Terrain Scan Processor Weapon Assault Rifle Energy Gun EM Pulse Gun Ballistic Gun Assault Rifle Special Weapon Mining Laser Build | -11 -10 -9 ------- Run | Scr Mat Mat Slots Evolved 2 | . . 2 Power . | . . . Propulsion . | . . . Utility 2 | . . 2 Weapon . | . . . Parts Attached 41 | 7 8 26 Power 5 | 1 1 3 Engine 5 | 1 1 3 Core . | . . . Reactor . | . . . Propulsion 11 | 2 1 8 Treads . | . . . Leg 2 | . . 2 Wheel 9 | 2 1 6 Hover . | . . . Flight . | . . . Utility 14 | 2 4 8 Device 9 | 2 2 5 Storage 1 | . . 1 Processor 4 | . 2 2 Hackware . | . . . Protection . | . . . Artifact . | . . . Weapon 11 | 2 2 7 Energy Gun 6 | 1 . 5 Energy Cannon . | . . . Ballistic Gun 4 | 1 1 2 Ballistic Cannon . | . . . Launcher . | . . . Special Weapon 1 | . 1 . Impact Weapon . | . . . Slashing Weapon . | . . . Piercing Weapon . | . . . Special Melee Weapon . | . . . Unidentified Prototypes 1 | . . 1 Parts Lost 16 | . 2 14 Power 1 | . . 1 Propulsion 6 | . 1 5 Utility 4 | . . 4 Weapon 5 | . 1 4 Highest Loss Streak 6 | . 1 6 To Critical Strikes . | . . . Average Slot Usage (%) 92 | . 99 85 Engine 12 | . 14 10 Leg 1 | . . 2 Wheel 22 | . 27 16 Device 15 | . 15 14 Storage 4 | . . 10 Processor 12 | . 12 11 Energy Gun 8 | . 6 10 Ballistic Gun 10 | . 13 7 Special Weapon 4 | . 7 . Naked Turns . | . . . Heaviest Build 23 | 11 11 23 Greatest Support 32 | 20 20 32 Greatest Overweight (x) 7 | . . 7 Average Overweight (x) . | . . . Largest Inventory Capacity 10 | 5 5 10 Average Capacity 7 | 5 5 9 Most Carried 10 | 3 4 10 Average Carried 3 | 1 3 5 Final Capacity 10 | 5 5 10 Final Carried 7 | 3 3 7 Class Distribution -------------------- 59% | Scavenger-Mutant 40% | Mutant Dominant Class ---------------- Mutant | -10/Materials Scavenger-Mutant | -9/Materials Resources | -11 -10 -9 ----------- Run | Scr Mat Mat Matter Collected 825 | 321 90 414 Remotely . | . . . Salvage Created 1526 | 237 223 1066 Parts 86 | 20 17 49 Haulers Intercepted 2 | . . 2 Recyclers Shooed 2 | . . 2 Parts Field Recycled . | . . . Retrieved Matter . | . . . Parts Self-Destructed . | . . . Prevented . | . . . Kills | -11 -10 -9 ------- Run | Scr Mat Mat Combat Hostiles Destroyed 14 | . 2 12 Guns 13 | . 1 12 Cannons 1 | . 1 . Classes Destroyed 10 | 3 3 4 Worker 3 | 2 1 . Builder 2 | . 1 1 Tunneler 6 | 5 1 . Hauler 2 | . . 2 Recycler 7 | 1 1 5 Operator 1 | . . 1 Watcher 4 | . 2 2 Grunt 10 | . 2 8 Duelist 1 | . . 1 Sentry 3 | . . 3 Best Kill Streak 7 | 7 2 3 Combat Bots Only 2 | . 1 2 Max Kills in Single Turn 2 | 1 2 1 Gunslinging . | . . . Exploded . | . . . Melee . | . . . Uniques/NPCs Destroyed . | . . . Combat | -11 -10 -9 -------- Run | Scr Mat Mat Damage Taken 1596 | . 283 1313 Core 445 | . 44 401 Absorbed by Shields . | . . . Regen/Repaired (Parts) 80 | . 80 . Core Remaining (%) 91 | 100 82 . Volleys Fired 126 | 18 25 83 Largest 2 | 2 2 2 Hottest 121 | 60 120 121 Shots Fired 207 | 35 43 129 Gun 200 | 35 36 129 Cannon . | . . . Launcher . | . . . Special 7 | . 7 . Kinetic 98 | 17 25 56 Thermal 80 | . 7 73 Explosive . | . . . Electromagnetic 29 | 18 11 . Robot Hit Streak 32 | 6 7 32 Robot Miss Streak 3 | 3 2 3 Penetration Max . | . . . Secondary Targets 3 | . . 3 Max Gunslinging Chain 1 | . . 1 Shots Hit Robots 138 | 20 24 94 Core Hits 59 | 8 9 42 Critical Kills . | . . . Critical Parts Destroyed . | . . . Critical Strikes . | . . . Melee Attacks . | . . . Impact . | . . . Slashing . | . . . Piercing . | . . . Sneak Attacks . | . . . Combat Hostiles . | . . . Follow-up Attacks . | . . . Damage Inflicted 1833 | 256 371 1206 Guns 1753 | 256 291 1206 Cannons . | . . . Explosions . | . . . Melee . | . . . Ramming 8 | . 8 . Kinetic 792 | 101 198 493 Thermal 785 | . 72 713 Explosive . | . . . Electromagnetic 248 | 155 93 . Impact . | . . . Slashing . | . . . Piercing . | . . . Highest Corruption . | . . . Average Corruption . | . . . Corruption Purged . | . . . Corruption Blocked . | . . . Overload Shots . | . . . Overflow Damage . | . . . Projectiles . | . . . Explosions . | . . . Melee . | . . . Knockbacks . | . . . Impact . | . . . Kinetic . | . . . Secondary . | . . . Self-Inflicted Damage 3 | . 3 . Shots . | . . . Rammed 4 | . 3 1 Targets Rammed 4 | . 3 1 Kicked . | . . . Crushed . | . . . Highest Temperature 230 | . 230 216 Average Temperature 59 | . 99 40 Received Heat Transfer 672 | . 150 522 Siege Activations . | . . . Robots Corrupted . | . . . Combat Hostiles . | . . . Parts Fried 2 | 1 1 . Impact Corruptions . | . . . Robots Melted . | . . . Combat Hostiles . | . . . Parts Melted 2 | . 2 . Heat Transferred 1838 | . 150 1688 Parts Sabotaged . | . . . Parts Stolen . | . . . Parts Stripped . | . . . Power Chain Reactions . | . . . Missiles Intercepted . | . . . Alert | -11 -10 -9 ------- Run | Scr Mat Mat Peak Influence 237 | 40 68 237 Initial 26 | . 26 2 Average 66 | 20 43 105 Maximum Alert Level 1 | . . 1 Low Security (%) 95 | 100 100 88 Level 1 4 | . . 11 Level 2 . | . . . Level 3 . | . . . Level 4 . | . . . Level 5 . | . . . High Security . | . . . Max Security . | . . . Squads Dispatched 3 | . 1 2 Investigation 1 | . 1 . Extermination . | . . . Reinforcement 2 | . . 2 Assault . | . . . Garrison . | . . . Intercept . | . . . Searches Triggered . | . . . Construction Impeded . | . . . Haulers Reinforced . | . . . Active Scanning Responses . | . . . Cargo Convoy Interrupts . | . . . Stealth | -11 -10 -9 --------- Run | Scr Mat Mat Distress Signals 3 | . 1 2 Communications Jammed . | . . . Distress Signals . | . . . Times Spotted 32 | . 7 25 Peak Tracking Total 5 | . 3 5 Tactical Retreats 2 | . . 2 Traps | -11 -10 -9 ------- Run | Scr Mat Mat Traps Triggered . | . . . Indirectly . | . . . Trap Hack Attempts . | . . . Triggered . | . . . Disarmed . | . . . Reprogrammed . | . . . Reused . | . . . Traps Extracted . | . . . Installed . | . . . Triggered . | . . . Machines | -11 -10 -9 ---------- Run | Scr Mat Mat Machines Disabled . | . . . Max in Single Turn . | . . . Machines Sabotaged . | . . . Garrisons Compromised . | . . . Overloaded Fab Kills . | . . . Hacking | -11 -10 -9 --------- Run | Scr Mat Mat Machines Accessed 4 | . 2 2 Terminals 2 | . 1 1 Fabricators . | . . . Repair Stations 1 | . 1 . Recycling Units . | . . . Scanalyzers 1 | . . 1 Garrison Access . | . . . Total Hacks 22 | . 5 17 Successful 20 | . 5 15 Failed 2 | . . 2 Catastrophic . | . . . Database Lockouts . | . . . Manual . | . . . Terminals 7 | . 3 4 Fabricators . | . . . Repair Stations 2 | . 2 . Recycling Units . | . . . Scanalyzers 13 | . . 13 Garrison Access . | . . . Terminal Hacks 6 | . 3 3 Record 1 | . 1 . Prototype ID Bank 1 | . 1 . Scanalyzer Index 1 | . 1 . Reinforcement Status 1 | . . 1 Hauler Manifests 1 | . . 1 Zone Layout 1 | . . 1 Fabricator Hacks . | . . . Repair Station Hacks 2 | . 2 . Scan Component 1 | . 1 . Repair 1 | . 1 . Recycling Unit Hacks . | . . . Scanalyzer 12 | . . 12 Insert Component 6 | . . 6 Analyze 6 | . . 6 Garrison Access Hacks . | . . . Unauthorized Hacks . | . . . Terminals . | . . . Fabricators . | . . . Repair Stations . | . . . Recycling Units . | . . . Scanalyzers . | . . . Garrison Access . | . . . Data Cores Recovered . | . . . Used . | . . . Hacking Detections 3 | . 1 2 Full Trace Events 1 | . 1 . Feedback Events . | . . . Feedback Blocked . | . . . Robot Schematics Acquired . | . . . Robots Built . | . . . Authchips . | . . . Time . | . . . Total Robot Build Rating . | . . . Part Schematics Acquired 5 | . . 5 Parts Built . | . . . Authchips . | . . . Time . | . . . Total Part Build Rating . | . . . Parts Repaired 1 | . 1 . Time 26 | . 26 . Parts Recycled . | . . . Recycled Matter . | . . . Retrieved Matter . | . . . Retrieved Components . | . . . Parts Scanalyzed 5 | . . 5 Part Schematics Acquired 5 | . . 5 Parts Damaged . | . . . Bothacking | -11 -10 -9 ------------ Run | Scr Mat Mat Used RIF Installer . | . . . Robots Hacked . | . . . Non-combat . | . . . Combat . | . . . Robot Hacks Applied . | . . . Relay Couplers Released . | . . . Fabnet Peak Effective % . | . . . Robots Rewired . | . . . Allies Hacked . | . . . Hacks Repelled . | . . . Allies | -11 -10 -9 -------- Run | Scr Mat Mat Total Allies . | . . . Largest Group . | . . . Highest-Rated Group . | . . . Highest-Rated Ally . | . . . Total Orders . | . . . Ally Attacks . | . . . Total Damage . | . . . Kills . | . . . Allies Corrupted . | . . . Allies Melted . | . . . Intel | -11 -10 -9 ------- Run | Scr Mat Mat Robot Analysis Total . | . . . Derelict Logs Recovered . | . . . Drone Launches . | . . . Drone Recoveries . | . . . Exploration | -11 -10 -9 ------------- Run | Scr Mat Mat Turns Passed 1840 | 178 906 756 Spaces Moved 882 | 140 297 445 Core 9 | 1 . 8 Treads . | . . . Legs 64 | . . 64 Wheels 809 | 139 297 373 Hover . | . . . Flight . | . . . Fastest Speed 50 | 50 80 80 Average Speed 91 | 79 80 102 Slowest Speed 400 | 80 80 400 Overloaded Moves . | . . . Propulsion Burnouts . | . . . Robots Hopped . | . . . Cave-ins Triggered . | . . . Exploration Rate (%) 24 | 5 42 25 Regions Visited 2 Branch Regions . Pre-discovered Areas . | . . . Known Exits Taken 1 | . 1 . Unknown Exits Taken 1 | 1 . . Scrap Searched . | . . . Spaces Dug . | . . . Terrain Destroyed 2 | . 2 . Melee . | . . . Projectile 2 | . 2 . AOE . | . . . Terrain Rammed . | . . . Walls Destroyed . | . . . Machines Disabled . | . . . Actions | -11 -10 -9 --------- Run | Scr Mat Mat Total 1689 | 167 907 615 Wait 605 | . 569 36 Move 880 | 139 296 445 Hop . | . . . Pick Up 15 | 3 1 11 Fast Attach 22 | 7 6 9 Attach 18 | . 2 16 Detach 10 | . 1 9 Swap 1 | . . 1 Drop 8 | . 4 4 Fire 126 | 18 25 83 Melee . | . . . Ram 4 | . 3 1 Kick . | . . . Crush . | . . . Escape Stasis . | . . . Rewire . | . . . Trap . | . . . Miscellaneous . | . . . Route ------- -11/Scrapyard -10/Materials (discovered 2 exits: *Mat / [*Min]) -9/Materials (discovered 1 exit: *Min) History --------- Turn | Location | Event 5 | -11/Scrapyard | Discovered new exit (range 15) 179 | -11/Scrapyard | Entered Materials 310 | -10/Materials | Build established: Mutant 529 | -10/Materials | Discovered new exit (range 14) 954 | -10/Materials | Build established: Scavenger-Mutant 991 | -10/Materials | Discovered new exit (range 16) 1004 | -10/Materials | Identified exit to Materials 1075 | -10/Materials | Repaired Assault Rifle 1085 | -10/Materials | Entered another Materials area 1085 | -9/Materials | Evolved 2 slots: Utility x2 1205 | -9/Materials | Discovered new exit (range 16) 1455 | -9/Materials | Lost 4 parts (2n2w) 1633 | -9/Materials | Identified exit to Mines 1680 | -9/Materials | Core integrity fell below 50% 1767 | -9/Materials | Core integrity fell below 20% 1822 | -9/Materials | Lost 6 parts (1p2n1u2w) 1841 | -9/Materials | Destroyed by S-10 Pest with Light Assault Rifle Last Messages --------------- 01686_ G-34 Mercenary destroyed. 01689_ Acquired 18 matter. 01718_ Com. Wheel destroyed. 01735_ Wheel destroyed. 01738_ Y-45 Defender destroyed. 01744_ Transport Network Coupler destroyed. 01744_ R-06 Scavenger destroyed. 01749_ K-01 Serf collects debris. 01759_ Sml. Laser destroyed. 01761_ Assault Rifle destroyed. 01770_ S-10 Pest destroyed. 01773_ Critical hit (Burn: +37). 01783_ G-34 Mercenary destroyed. 01785_ Acquired 34 matter. 01787_ Acquired Aluminum Leg. 01791_ Hvy. Ion Engine destroyed. 01802_ Y-45 Defender destroyed. 01804_ K-01 Serf collects debris. 01808_ R-06 Scavenger collects Lgt. Assault Rifle. 01824_ O-16 Technician destroyed. Map ----- +----------------------------------------------------+ | =* # ##?????????????????? | | % > * % + * ##?????????????????? | | # !!%#####??????????????? | | ###### ##+#### #####+######??????????????? | | ###### "!"!" # ### # ##??????????????? | | ##??##""!"!""# ### # T ##??????????????? | | # ############ ### + % """ ##??????????????? | | ############ ### # """ ##??????????????? | | #######????# ### # """ ##??????????????? | | ## ????# ### %# ##??????????????? | | ####""" ????# ### + ##??????????????? | | ####""" ????####### # ##??????????????? | | #??#""" ????????### ################??????????? | | ???# ????????## =% ############### ?????????? | | #### ????????## % + ?????????? | | ####+#????????## * #######? # ?????????? | | ## ####???## #######?????????????? | | ????????? ####?#### ##??????????????????? | | ????????? ######## ##??????????????????? | | ????????? # ##??????????????????? | | ????????? # ##??????????????????? | | ?????????## # ??????????????????? | | ?????????## #######+#### # ??????????????????? | | ?????????####/?###### s # # ??????????????????? | | ?????????# ?????## # # ??????????????????? | | ???????????????????## s@ # # ??????????????????? | | ???????????????????## # # ??????????????????? | | ???????????????????## [ # ##??????????????????? | | ???????????????????## # ##??????????????????? | | ???????????????????######### ##??????????????????? | | ???????????????????######### ????????????????????? | | ?????????????????????????????????????????????????? | | ?????????????????????????????????????????????????? | | ?????????????????????????????????????????????????? | | ?????????????????????????????????????????????????? | | ?????????????????????????????????????????????????? | | ?????????????????????????????????????????????????? | | ?????????????????????????????????????????????????? | | ?????????????????????????????????????????????????? | | ?????????????????????????????????????????????????? | | ?????????????????????????????????????????????????? | | ?????????????????????????????????????????????????? | | ?????????????????????????????????????????????????? | | ?????????????????????????????????????????????????? | | ?????????????????????????????????????????????????? | | ?????????????????????????????????????????????????? | | ?????????????????????????????????????????????????? | | ?????????????????????????????????????????????????? | | ?????????????????????????????????????????????????? | | ?????????????????????????????????????????????????? | +----------------------------------------------------+ Best States ------------- Heat Dissipation 28 Energy Generation 14 Energy Capacity 280 Matter Stores 300 Matter Capacity 300 Sight Range 16 Robot Scan Range 14 Terrain Scan Range 16 Terrain Scan Density 85 Evasion (%) 55 Item Schematics ----------------- Sensor Array | -9/Materials | Scanalyzed Structural Scanner | -9/Materials | Scanalyzed Signal Interpreter | -9/Materials | Scanalyzed Transport Network Coupler | -9/Materials | Scanalyzed Datajack | -9/Materials | Scanalyzed Robot Schematics ------------------ None Fabricated ------------ Nothing Alien Tech Used ----------------- None Achievements -------------- None Challenges ------------ None Game ------ Seed Qirby Manual? 1 Play Time 00:18:11 Cumulative 11.4 hours Start 2022.03.29 @ 17:15:57 End 2022.03.29 @ 17:33:30 Sessions 1 Manual Loads 0 Difficulty Rogue Special Mode None Game No. 15 Rogue 15 Adventurer 0 Explorer 0 Win Type - Total 0 Types 0/0/0/0/0/0/0/0/0 Lore% 15 Gallery% 16 Achievement% 14 Wizard Run 0 Options --------- ASCII 1 Keyboard 0 Movement Mouse Keybinds 0 Fullscreen 1 Font 14/Terminus Map View 84x54 Tactical HUD 1 Map Filters NONE Filters NONE Steam 1 RUN: dbb7164d-f10d-46bc-a349-24eb829cd980